fUSD/lending_fUSD_20250426
["ID","MTS","AMOUNT","RATE_DAILY","PERIOD"]
[359061151,1745683846222,-400.0,0.00019967,2]
[359061152,1745683846232,-400.0,0.00019967,2]
[359061153,1745683846243,-400.0,0.00019967,2]
[359061154,1745683846252,-400.0,0.00019967,2]
[359061155,1745683846262,-1730.27,0.00019967,2]
[359061156,1745683846271,-715.54,0.00019967,2]
[359061157,1745683846281,-400.0,0.00019967,2]
[359061158,1745683846292,-400.0,0.00019967,2]
[359061159,1745683846302,-400.0,0.00019967,2]
[359061160,1745683846313,-972.58,0.00019967,2]
[359061161,1745683846323,-409.07,0.00019967,2]
[359061162,1745683846333,-400.0,0.00019967,2]
[359061163,1745683846343,-350.02092659,0.00019967,2]
[359061164,1745683846352,-783.29,0.00019967,2]
[359061165,1745683846362,-400.0,0.00019967,2]
[359061166,1745683846372,-400.0,0.00019967,2]
[359061168,1745683846383,-334.88885956,0.00019967,2]
[359061169,1745683846395,-400.0,0.00019967,2]
[359061170,1745683846405,-400.0,0.00019967,2]
[359061171,1745683846415,-400.0,0.00019967,2]
[359061172,1745683846426,-1938.97,0.00019967,2]
[359061173,1745683846439,-400.0,0.00019967,2]
[359061174,1745683846450,-400.0,0.00019967,2]
[359061175,1745683846461,-685.51,0.00019967,2]
[359061176,1745683846470,-634.71,0.00019967,2]
[359061177,1745683846480,-220.92064094,0.00019967,2]
[359061178,1745683846491,-400.0,0.00019967,2]
[359061180,1745683846501,-400.0,0.00019967,2]
[359061181,1745683846510,-629.26,0.00019967,2]
[359061182,1745683846520,-629.26,0.00019967,2]
[359061183,1745683846530,-446.77,0.00019967,2]
[359061184,1745683846539,-400.0,0.00019967,2]
[359061185,1745683846549,-822.46,0.00019967,2]
[359061186,1745683846559,-404.18,0.00019967,2]
[359061187,1745683846569,-634.12,0.00019967,2]
[359061188,1745683846580,-400.0,0.00019967,2]
[359061189,1745683846590,-400.0,0.00019967,2]
[359061190,1745683846600,-400.0,0.00019967,2]
[359061191,1745683846610,-275.02640054,0.00019967,2]
[359061192,1745683846619,-400.0,0.00019967,2]
[359061193,1745683846629,-602.92,0.00019967,2]
[359061194,1745683846638,-556.49,0.00019967,2]
[359061195,1745683846649,-400.0,0.00019967,2]
[359061196,1745683846661,-400.0,0.00019967,2]
[359061197,1745683846671,-400.0,0.00019967,2]
[359061198,1745683846682,-400.0,0.00019967,2]
[359061199,1745683846695,-400.0,0.00019967,2]
[359061200,1745683846707,-482.24,0.00019967,2]
[359061201,1745683846717,-400.0,0.00019967,2]
[359061202,1745683846727,-400.0,0.00019967,2]
[359061203,1745683846739,-690.95,0.00019967,2]
[359061204,1745683846749,-400.0,0.00019967,2]
[359061205,1745683846760,-400.0,0.00019967,2]
[359061206,1745683846772,-400.0,0.00019967,2]
[359061207,1745683846782,-400.0,0.00019967,2]
[359061208,1745683846791,-4185.23,0.00019967,2]
[359061209,1745683846802,-400.0,0.00019967,2]
[359061210,1745683846813,-698.37,0.00019967,2]
[359061211,1745683846823,-400.0,0.00019967,2]
[359061212,1745683846832,-400.0,0.00019967,2]
[359061213,1745683846843,-400.0,0.00019967,2]
[359061214,1745683846854,-400.0,0.00019967,2]
[359061215,1745683846865,-837.34,0.00019967,2]
[359061216,1745683846875,-608.73,0.00019967,2]
[359061217,1745683846885,-643.1,0.00019967,2]
[359061219,1745683846895,-200.0,0.00019967,2]
[359061221,1745683846906,-400.0,0.00019967,2]
[359061222,1745683846915,-400.0,0.00019967,2]
[359061223,1745683846925,-400.0,0.00019967,2]
[359061224,1745683846935,-500.0,0.00019967,2]
[359061225,1745683846945,-400.0,0.00019967,2]
[359061226,1745683846955,-400.0,0.00019967,2]
[359061227,1745683846965,-666.74,0.00019967,2]
[359061228,1745683846974,-400.0,0.00019967,2]
[359061229,1745683846985,-400.0,0.00019967,2]
[359061230,1745683846995,-400.0,0.00019967,2]
[359061231,1745683847004,-862.22,0.00019967,2]
[359061232,1745683847014,-400.0,0.00019967,2]
[359061233,1745683847024,-457.11,0.00019967,2]
[359061234,1745683847034,-455.72,0.00019967,2]
[359061235,1745683847044,-419.9,0.00019967,2]
[359061236,1745683847054,-4451.81,0.00019967,2]
[359061237,1745683847064,-200.0,0.00019968,2]
[359061238,1745683847074,-209.84969339,0.00019968,2]
[359061239,1745683847084,-400.0,0.00019968,2]
[359061240,1745683847094,-400.0,0.00019968,2]
[359061241,1745683847103,-200.0,0.00019968,2]
[359061242,1745683847113,-244.37037295,0.00019968,2]
[359061243,1745683847123,-503.20936265,0.00019968,2]
[359061244,1745683847133,-509.13702663,0.00019968,2]
[359061245,1745683847143,-400.0,0.00019968,2]
[359061246,1745683847152,-400.0,0.00019968,2]
[359061247,1745683847163,-868.17,0.00019968,2]
[359061248,1745683847173,-599.97,0.00019968,2]
[359061249,1745683847183,-906.08,0.00019968,2]
[359061250,1745683847194,-400.0,0.00019968,2]
[359061251,1745683847203,-400.0,0.00019968,2]
[359061252,1745683847213,-411.11,0.00019968,2]
[359061253,1745683847223,-642.39,0.00019968,2]
[359061254,1745683847232,-1195.3,0.00019968,2]
[359061255,1745683847242,-1126.58,0.00019968,2]
[359061256,1745683847252,-400.0,0.00019968,2]
[359061257,1745683847261,-1267.56,0.00019968,2]
[359061258,1745683847271,-483.31,0.00019968,2]
[359061259,1745683847280,-400.0,0.00019968,2]
[359061261,1745683847290,-850.15,0.00019968,2]
[359061263,1745683847299,-400.0,0.00019968,2]
[359061264,1745683847309,-964.29,0.00019968,2]
[359061266,1745683847319,-646.74,0.00019968,2]
[359061268,1745683847328,-1000.73,0.00019968,2]
[359061269,1745683847338,-485.04,0.00019968,2]
[359061270,1745683847347,-629.26,0.00019968,2]
[359061271,1745683847357,-6937.0,0.00019973,2]
[359061272,1745683847372,-2667.0,0.00019973,2]
[359061273,1745683847381,-500.0,0.00019973,2]
[359061274,1745683847391,-500.0,0.00019973,2]
[359061275,1745683847401,-500.70859374,0.00019973,2]
[359061276,1745683847412,-500.0,0.00019973,2]
[359061277,1745683847421,-500.0,0.00019973,2]
[359061278,1745683847432,-500.0,0.00019973,2]
[359061279,1745683847444,-174.53826606,0.00019973,2]
[359061280,1745683847455,-500.0,0.00019973,2]
[359061281,1745683847467,-500.0,0.00019973,2]
[359061282,1745683847477,-2190.097,0.00019981,2]
[359061283,1745683847487,-178.287,0.00019981,2]
[359061284,1745683847497,-500.0,0.00019981,2]
[359061285,1745683847507,-2699.0,0.00019981,2]
[359061286,1745683847516,-500.0,0.00019981,2]
[359061287,1745683847527,-500.0,0.00019981,2]
[359061288,1745683847539,-500.0,0.00019981,2]
[359061289,1745683847549,-150.0,0.00019981,2]
[359061290,1745683847559,-464.34432765,0.00019981,2]
[359061291,1745683847570,-150.0,0.00019981,2]
[359061292,1745683847582,-500.0,0.00019981,2]
[359061293,1745683847592,-500.0,0.00019981,2]
[359061294,1745683847603,-463.27980547,0.00019981,2]
[359061295,1745683847615,-1381.3668379,0.00019986,2]
[359061296,1745683847625,-17438.3448502,0.00019986,2]
[359061297,1745683847635,-5647.7890733,0.00019986,2]
[359061298,1745683847646,-6193.0,0.00019988,2]
[359061299,1745683847656,-201.859,0.00019988,2]
[359061300,1745683847667,-257.141,0.00019988,2]
[359061301,1745683847678,-877.0,0.00019988,2]
[359061302,1745683847693,-2149.0,0.00019988,2]
[359061303,1745683847703,-3991.0,0.00019988,2]
[359061304,1745683847714,-872.0,0.00019988,2]
[359061305,1745683847724,-1142.12679218,0.0001999,2]
[359061306,1745683847735,-1142.12679218,0.0001999,2]
[359061307,1745683847745,-1142.12679218,0.0001999,2]
[359061308,1745683847755,-217.57973082,0.00019998,2]
[359061309,1745683847766,-400.0,0.00019998,2]
[359061310,1745683847776,-400.0,0.00019998,2]
[359061311,1745683847786,-795.14,0.00019998,2]
[359061312,1745683847796,-400.0,0.00019998,2]
[359061313,1745683847805,-400.0,0.00019998,2]
[359061314,1745683847828,-1350.8,0.00019998,2]
[359061315,1745683847838,-1350.8,0.00019998,2]
[359061316,1745683847850,-1350.8,0.00019998,2]
[359061317,1745683847860,-1350.8,0.00019998,2]
[359061318,1745683847871,-1350.8,0.00019998,2]
[359061319,1745683847883,-1350.8,0.00019998,2]
[359061320,1745683847893,-1350.8,0.00019998,2]
[359061321,1745683847904,-1350.8,0.00019998,2]
[359061322,1745683847914,-1350.8,0.00019998,2]
[359061323,1745683847925,-1350.8,0.00019998,2]
[359061324,1745683847935,-1350.8,0.00019998,2]
[359061325,1745683847946,-1350.8,0.00019998,2]
[359061326,1745683847956,-1350.8,0.00019998,2]
[359061327,1745683847966,-1350.8,0.00019998,2]
[359061328,1745683847977,-1350.8,0.00019998,2]
[359061329,1745683847988,-1350.8,0.00019998,2]
[359061330,1745683847999,-1350.8,0.00019998,2]
[359061331,1745683848009,-1350.8,0.00019998,2]
[359061332,1745683848019,-1350.8,0.00019998,2]
[359061333,1745683848156,-1350.8,0.00019998,2]
[359061334,1745683848168,-1350.8,0.00019998,2]
[359061335,1745683848178,-1350.8,0.00019998,2]
[359061336,1745683848188,-1350.8,0.00019998,2]
[359061337,1745683848198,-1350.91423895,0.00019998,2]
[359061338,1745683848214,-629.26,0.00019998,2]
[359061339,1745683848224,-629.26,0.00019998,2]
[359061340,1745683848235,-500.0,0.00019999,2]
[359061341,1745683848245,-500.0,0.00019999,2]
[359061342,1745683848255,-300.0,0.00019999,2]
[359061343,1745683848265,-500.0,0.00019999,2]
[359061344,1745683848275,-151.30694826,0.00019999,2]
[359061345,1745683848285,-500.0,0.00019999,2]
[359061346,1745683848295,-500.0,0.00019999,2]
[359061347,1745683848304,-283.23024813,0.00019999,2]
[359061348,1745683848314,-155.72437246,0.00019999,2]
[359061349,1745683848324,-629.26,0.00019999,2]
[359061350,1745683848334,-629.26,0.00019999,2]
[359061351,1745683848344,-629.26,0.00019999,2]
[359061352,1745683848354,-629.26,0.00019999,2]
[359061353,1745683848364,-629.26,0.00019999,2]
[359061354,1745683848374,-629.26,0.00019999,2]
[359061355,1745683848383,-629.26,0.00019999,2]
[359061356,1745683848394,-629.26,0.00019999,2]
[359061357,1745683848404,-629.26,0.00019999,2]
[359061358,1745683848414,-629.26,0.00019999,2]
[359061359,1745683848424,-629.26,0.00019999,2]
[359061360,1745683848434,-629.26,0.00019999,2]
[359061361,1745683848444,-629.26,0.00019999,2]
[359061362,1745683848454,-629.26,0.00019999,2]
[359061363,1745683848464,-629.26,0.00019999,2]
[359061364,1745683848473,-629.26,0.00019999,2]
[359061365,1745683848483,-629.26,0.00019999,2]
[359061366,1745683848493,-629.26,0.00019999,2]
[359061367,1745683848504,-629.39921698,0.00019999,2]
[359061368,1745683848514,-980.72,0.00019999,2]
[359061369,1745683848524,-980.72,0.00019999,2]
[359061370,1745683848534,-980.72,0.00019999,2]
[359061371,1745683848544,-980.72,0.00019999,2]
[359061372,1745683848553,-980.72,0.00019999,2]
[359061373,1745683848563,-980.72,0.00019999,2]
[359061374,1745683848573,-980.72,0.00019999,2]
[359061375,1745683848583,-980.72,0.00019999,2]
[359061376,1745683848592,-980.72,0.00019999,2]
[359061377,1745683848601,-980.72,0.00019999,2]
[359061378,1745683848611,-980.72,0.00019999,2]
[359061379,1745683848621,-980.72,0.00019999,2]
[359061380,1745683848631,-980.72,0.00019999,2]
[359061381,1745683848640,-980.72,0.00019999,2]
[359061382,1745683848650,-980.72,0.00019999,2]
[359061383,1745683848666,-980.72,0.00019999,2]
[359061384,1745683848675,-980.72,0.00019999,2]
[359061385,1745683848689,-980.72,0.00019999,2]
[359061386,1745683848698,-980.72,0.00019999,2]
[359061387,1745683848708,-980.72,0.00019999,2]
[359061388,1745683848718,-980.72,0.00019999,2]
[359061389,1745683848728,-980.79235294,0.00019999,2]
[359061390,1745683848738,-1000.0,0.00019999,2]
[359061391,1745683848749,-851.0,0.00019999,2]
[359061392,1745683848759,-540173.57908325,0.0002,2]
[359061393,1745683848769,-226.20042069,0.0002,2]
[359061394,1745683848778,-37082.54910036,0.0002,2]
[359061395,1745683849841,-275.09020303,0.00019966,2]
[359061396,1745683849854,-224.90979697,0.00019966,2]
[359061397,1745683849864,-200.0,0.00019966,2]
[359061398,1745683849874,-2494945.82445046,0.0002,2]
[359061399,1745683849885,-150.0,0.0002,2]
[359061400,1745683849895,-265.02964783,0.0002,2]
[359061401,1745683849905,-150.0,0.0002,2]
[359061402,1745683849915,-898.52094072,0.0002,2]
[359061403,1745683849924,-1338.23399658,0.0002,2]
[359061404,1745683849934,-150.0,0.0002,2]
[359061405,1745683849944,-1814.24623158,0.0002,2]
[359061406,1745683849955,-2717827.09532998,0.0002,2]
[359061407,1745683849977,-1398.65773293,0.0002,2]
[359061408,1745683850050,-9368.51466027,0.0002,2]
[359061409,1745683850830,-560.63,0.00019897,2]
[359061410,1745683850840,-839.005,0.00019897,2]
[359061411,1745683850871,-220.425,0.00019897,2]
[359061412,1745683850881,-7598.87457015,0.000199,2]
[359061413,1745683850891,-400.0,0.00019966,2]
[359061414,1745683850902,-400.0,0.00019966,2]
[359061415,1745683850912,-162350.91160251,0.0002,2]
[359061416,1745683850923,-39548.64525605,0.0002,2]
[359061417,1745683850936,-5995.50257779,0.0002,2]
[359061418,1745683850949,-6063.71154672,0.0002,2]
[359061419,1745683851035,-7549.31298404,0.0002,2]
[359061420,1745683851046,-1770.59999994,0.0002,2]
[359061421,1745683851058,-7558.41776409,0.0002,2]
[359061422,1745683851069,-1164.00608359,0.0002,2]
[359061423,1745683851082,-1142.48127422,0.0002,2]
[359061424,1745683852097,-39012.29406862,0.0002,2]
[359061425,1745683852114,-120872.95366234,0.0002,2]
[359061426,1745683852127,-916.83806527,0.0002,2]
[359061427,1745683852139,-7566.38950112,0.0002,2]
[359061428,1745683864913,1090.05918112,0.00019999,5]
[359061429,1745683864954,1090.05918112,0.00019999,5]
[359061430,1745683864986,1090.05918112,0.00019999,5]
[359061431,1745683865021,1090.05918112,0.00019999,5]
[359061432,1745683865069,1090.05918112,0.00019999,5]
[359061433,1745683865122,1090.05918112,0.00019999,5]
[359061434,1745683865182,1090.05918112,0.00019999,5]
[359061435,1745683865232,1090.05918112,0.00019999,5]
[359061436,1745683865298,1090.05918108,0.00019999,5]
[359061437,1745683975047,250.0,0.00017,2]
[359061438,1745683976118,300.0,0.00019,2]
[359061439,1745684013597,150.0,0.00019052,2]
[359061440,1745684042952,-241.01131161,0.00019504,2]
[359061441,1745684125529,-163.0225219,0.00019504,2]
[359061442,1745684531947,4901.68,0.00037808,60]
[359061443,1745684712799,415.38,0.00016969,2]
[359061444,1745684713022,415.38,0.00019233,2]
[359061445,1745684731601,150.74,0.00027425,30]
[359061446,1745684735862,-197.63407949,0.00019502,2]
[359061447,1745684737867,1000.0,9e-05,2]
[359061452,1745684741168,5100.0,0.00037808,60]
[359061453,1745684749656,1000.0,0.0001888,2]
[359061459,1745684808704,7169.24,0.00018881,2]
[359061460,1745684808727,10000.0,0.00018881,2]
[359061461,1745684808749,5972.84,0.00018881,2]
[359061462,1745684816984,4100.0,0.00037808,60]
[359061480,1745684840283,1409.68775829,0.0002,5]
[359061486,1745684875315,8300.0,0.0002,4]
[359061487,1745684876697,4027.16,0.0001,2]
[359061488,1745684876725,10266.85656696,0.0001,2]
[359061489,1745684878575,67369.32036681,0.0002,4]
[359061491,1745684915079,737.80743369,0.00027973,30]
[359061492,1745684915215,737.80743369,0.00028082,30]
[359061493,1745684915342,737.80743369,0.00028192,30]
[359061494,1745684915499,737.80743369,0.00028301,30]
[359061495,1745684915624,737.80743369,0.00028411,30]
[359061496,1745684915763,737.80743369,0.00028521,30]
[359061497,1745684915913,737.80743369,0.0002863,30]
[359061498,1745684916078,737.80743369,0.0002874,30]
[359061499,1745684916214,737.80743369,0.00028849,30]
[359061500,1745684916353,737.80743369,0.00028959,30]
[359061501,1745684916464,737.80743369,0.00029096,30]
[359061502,1745684916588,737.80743369,0.00029205,30]
[359061506,1745684926290,7219.88786168,0.00013368,2]
[359061508,1745685003150,2000.0,0.0002,4]
[359061513,1745685031808,-720.63172157,0.00019502,2]
[359061518,1745685031850,-1289.55080956,0.00019502,2]
[359061521,1745685031865,-907.73971152,0.00019502,2]
[359061523,1745685031875,-250.0,0.00019527,2]
[359061525,1745685031885,-200.0,0.00019527,2]
[359061527,1745685031895,-200.0,0.00019552,2]
[359061529,1745685031905,-166.66,0.00019602,2]
[359061531,1745685031915,-160.26,0.000197,2]
[359061534,1745685031925,-170.20775914,0.00019796,2]
[359061537,1745685031934,-324.9675,0.00019797,2]
[359061539,1745685031944,-1000.0,0.00019798,2]
[359061541,1745685031953,-155.96257902,0.00019799,2]
[359061543,1745685031963,-170.20775911,0.00019808,2]
[359061546,1745685031973,-207.4,0.00019818,2]
[359061549,1745685031982,-620.92984338,0.00019818,2]
[359061553,1745685031993,-579.07015662,0.00019818,2]
[359061556,1745685032003,-170.20775911,0.00019819,2]
[359061558,1745685032012,-300.0,0.00019829,2]
[359061561,1745685032021,-3377.73133668,0.0001983,2]
[359061563,1745685032031,-170.20775911,0.00019831,2]
[359061565,1745685032040,-170.20775911,0.00019842,2]
[359061567,1745685032050,-170.20775911,0.00019854,2]
[359061569,1745685032059,-404.03383351,0.00019863,2]
[359061571,1745685032069,-170.20775911,0.00019865,2]
[359061573,1745685032078,-500.0,0.00019873,2]
[359061575,1745685032088,-500.0,0.00019873,2]
[359061577,1745685032097,-500.0,0.00019873,2]
[359061579,1745685032107,-170.20775911,0.00019877,2]
[359061581,1745685032117,-257.16,0.00019887,2]
[359061583,1745685032130,-257.16,0.00019887,2]
[359061585,1745685032139,-257.16,0.00019888,2]
[359061587,1745685032148,-170.20775911,0.00019888,2]
[359061589,1745685032158,-3248.06686756,0.00019889,2]
[359061591,1745685032167,-6543.52271873,0.0001989,2]
[359061593,1745685032177,-386.91300981,0.00019895,2]
[359061595,1745685032187,-495.27,0.00019895,2]
[359061597,1745685032197,-400.0,0.00019895,2]
[359061599,1745685032207,-400.0,0.00019895,2]
[359061601,1745685032216,-400.0,0.00019895,2]
[359061603,1745685032226,-548.94,0.00019895,2]
[359061605,1745685032235,-400.0,0.00019895,2]
[359061607,1745685032245,-400.0,0.00019895,2]
[359061609,1745685032256,-400.0,0.00019895,2]
[359061611,1745685032266,-400.0,0.00019895,2]
[359061612,1745685032277,-400.0,0.00019895,2]
[359061614,1745685032286,-400.0,0.00019896,2]
[359061616,1745685032296,-400.0,0.00019896,2]
[359061618,1745685032306,-409.92209787,0.00019896,2]
[359061620,1745685032316,-400.0,0.00019896,2]
[359061622,1745685032326,-924.88,0.00019896,2]
[359061624,1745685032336,-501.79,0.00019896,2]
[359061626,1745685032346,-400.0,0.00019896,2]
[359061628,1745685032356,-660.91,0.00019896,2]
[359061630,1745685032366,-400.0,0.00019896,2]
[359061632,1745685032376,-400.0,0.00019896,2]
[359061634,1745685032386,-467.35,0.00019896,2]
[359061636,1745685032395,-400.0,0.00019896,2]
[359061638,1745685032405,-400.0,0.00019896,2]
[359061640,1745685032415,-400.0,0.00019896,2]
[359061642,1745685032424,-400.0,0.00019896,2]
[359061644,1745685032434,-1493.89,0.00019896,2]
[359061646,1745685032443,-407.87,0.00019896,2]
[359061648,1745685032453,-590.42,0.00019896,2]
[359061650,1745685032463,-752.46,0.00019896,2]
[359061652,1745685032472,-473.16,0.00019896,2]
[359061654,1745685032483,-564.73,0.00019896,2]
[359061656,1745685032492,-634.64,0.00019896,2]
[359061658,1745685032502,-707.37,0.00019896,2]
[359061660,1745685032511,-678.89,0.00019896,2]
[359061662,1745685032520,-660.57,0.00019896,2]
[359061664,1745685032529,-624.37885616,0.00019896,2]
[359061666,1745685032543,-99.33114384,0.00019896,2]
[359061668,1745685032552,-353.03865076,0.00019896,2]
[359061671,1745685032568,-284.69134924,0.00019896,2]
[359061673,1745685032579,-126.94980075,0.00019896,2]
[359061723,1745685037476,-400.0,0.00019895,2]
[359061725,1745685037487,-400.0,0.00019895,2]
[359061726,1745685037497,-400.0,0.00019895,2]
[359061727,1745685037507,-480.89,0.00019895,2]
[359061728,1745685037517,-273.05019925,0.00019896,2]
[359061729,1745685037528,-443.05,0.00019896,2]
[359061730,1745685037538,-400.0,0.00019896,2]
[359061731,1745685037547,-400.0,0.00019896,2]
[359061732,1745685037557,-400.0,0.00019896,2]
[359061733,1745685037568,-468.79,0.00019896,2]
[359061734,1745685037577,-156.655325,0.00019896,2]
[359061735,1745685037587,-739.09,0.00019896,2]
[359061736,1745685037598,-606.14,0.00019896,2]
[359061737,1745685037608,-548.34,0.00019896,2]
[359061738,1745685037617,-1208.87,0.00019896,2]
[359061739,1745685037628,-3907.981828,0.00019896,2]
[359061740,1745685037639,-400.0,0.00019896,2]
[359061741,1745685037650,-400.0,0.00019896,2]
[359061742,1745685037661,-428.42492568,0.00019896,2]
[359061743,1745685037673,-1126.67,0.00019896,2]
[359061744,1745685037684,-400.0,0.00019896,2]
[359061756,1745685037980,-474.15,0.00019896,2]
[359061759,1745685037991,-300.0,0.00019896,2]
[359061761,1745685038000,-158.931182,0.00019896,2]
[359061763,1745685038011,-575.58,0.00019896,2]
[359061765,1745685038022,-414.43,0.00019896,2]
[359061767,1745685038031,-400.0,0.00019896,2]
[359061769,1745685038042,-400.0,0.00019896,2]
[359061771,1745685038052,-898.99,0.00019896,2]
[359061773,1745685038062,-898.99,0.00019896,2]
[359061775,1745685038072,-823.75,0.00019896,2]
[359061777,1745685038081,-400.0,0.00019896,2]
[359061779,1745685038091,-400.0,0.00019896,2]
[359061781,1745685038100,-930.13,0.00019896,2]
[359061783,1745685038110,-400.0,0.00019896,2]
[359061785,1745685038120,-563.69,0.00019896,2]
[359061787,1745685038132,-440.31,0.00019896,2]
[359061789,1745685038142,-400.0,0.00019896,2]
[359061791,1745685038152,-337.07245748,0.00019896,2]
[359061793,1745685038162,-964.15,0.00019896,2]
[359061795,1745685038172,-400.0,0.00019896,2]
[359061797,1745685038182,-552.6,0.00019896,2]
[359061799,1745685038191,-400.0,0.00019896,2]
[359061801,1745685038201,-400.0,0.00019896,2]
[359061803,1745685038211,-698.56,0.00019896,2]
[359061805,1745685038221,-642.97,0.00019896,2]
[359061807,1745685038231,-400.0,0.00019896,2]
[359061809,1745685038242,-400.0,0.00019896,2]
[359061811,1745685038252,-461.1,0.00019896,2]
[359061813,1745685038262,-400.0,0.00019896,2]
[359061815,1745685038271,-477.89,0.00019896,2]
[359061817,1745685038281,-400.0,0.00019896,2]
[359061819,1745685038291,-400.0,0.00019896,2]
[359061821,1745685038300,-400.0,0.00019896,2]
[359061823,1745685038310,-400.0,0.00019896,2]
[359061825,1745685038320,-400.0,0.00019896,2]
[359061827,1745685038331,-558.73,0.00019896,2]
[359061829,1745685038341,-400.0,0.00019896,2]
[359061831,1745685038351,-400.0,0.00019896,2]
[359061833,1745685038362,-592.04,0.00019896,2]
[359061835,1745685038372,-400.0,0.00019896,2]
[359061837,1745685038382,-432.11,0.00019896,2]
[359061839,1745685038392,-400.0,0.00019896,2]
[359061841,1745685038401,-678.57,0.00019896,2]
[359061843,1745685038411,-400.0,0.00019896,2]
[359061845,1745685038421,-699.03,0.00019896,2]
[359061847,1745685038431,-400.0,0.00019896,2]
[359061849,1745685038441,-686.67,0.00019896,2]
[359061851,1745685038451,-2829.69,0.00019896,2]
[359061854,1745685038462,-218178.6,0.00019896,2]
[359061856,1745685038473,-767.97,0.00019896,2]
[359061857,1745685038484,-407.41,0.00019896,2]
[359061860,1745685038494,-586.57,0.00019896,2]
[359061861,1745685038504,-517.35,0.00019896,2]
[359061863,1745685038513,-676.92,0.00019896,2]
[359061866,1745685038523,-400.0,0.00019896,2]
[359061868,1745685038533,-551.7,0.00019896,2]
[359061870,1745685038543,-400.0,0.00019896,2]
[359061872,1745685038553,-534.86,0.00019896,2]
[359061874,1745685038563,-400.0,0.00019896,2]
[359061876,1745685038574,-568.87,0.00019896,2]
[359061877,1745685038584,-400.0,0.00019896,2]
[359061879,1745685038594,-444.91,0.00019896,2]
[359061881,1745685038603,-400.0,0.00019896,2]
[359061883,1745685038613,-510.29,0.00019896,2]
[359061885,1745685038623,-400.0,0.00019896,2]
[359061887,1745685038633,-400.0,0.00019896,2]
[359061889,1745685038642,-520.06,0.00019896,2]
[359061891,1745685038652,-420.19,0.00019896,2]
[359061893,1745685038662,-400.0,0.00019896,2]
[359061895,1745685038671,-737.52,0.00019896,2]
[359061898,1745685038682,-747.71,0.00019896,2]
[359061900,1745685038691,-692.97,0.00019896,2]
[359061902,1745685038701,-400.0,0.00019896,2]
[359061904,1745685038711,-459.41,0.00019896,2]
[359061906,1745685038720,-1143.17,0.00019896,2]
[359061908,1745685038730,-3360.59,0.00019896,2]
[359061910,1745685038740,-592.54,0.00019896,2]
[359061912,1745685038750,-706.7,0.00019896,2]
[359061914,1745685038759,-400.0,0.00019896,2]
[359061916,1745685038769,-400.0,0.00019896,2]
[359061918,1745685038779,-452.27,0.00019896,2]
[359061920,1745685038788,-828.03,0.00019896,2]
[359061922,1745685038798,-1158.32,0.00019896,2]
[359061924,1745685038808,-400.0,0.00019896,2]
[359061926,1745685038817,-1045.27,0.00019896,2]
[359061928,1745685038827,-824.38,0.00019896,2]
[359061930,1745685038836,-400.0,0.00019896,2]
[359061931,1745685038847,-400.0,0.00019896,2]
[359061933,1745685038856,-400.0,0.00019896,2]
[359061935,1745685038867,-400.0,0.00019896,2]